Cogmind - Beta 17.1 @@@ ROGUE MODE // 2026.08.31 @ 13:16:50 Player: Scuttle Result: Destroyed by S-10 Pest with Light Assault Rifle Performance ------------- Evolutions (0) 0 Regions Visited (4) 800 Robots Destroyed (44) 220 Value Destroyed (698) 698 Prototype IDs (23) 460 Alien Tech Used (0) 0 Bonus (168) 168 TOTAL SCORE: 2346 Bonus ------- Follower Combat Kills 7 Aligned with FarCom 300 Friendly Fire -139 Cogmind --------- Core Integrity 0/250 Matter 300/300 Energy 125/125 System Corruption 2% Temperature Cool (0) Movement Rolling (95) Ox1 Location -9/Mines Parts ------- > --- POWER (1) -------- Light Ion Engine > --- PROPULSION (2) --- Wheel Wheel > --- UTILITY (2) ------ Large Storage Unit Light Armor Plating > --- WEAPON (2) ------- Assault Rifle Assault Rifle > --- INVENTORY (15) --- Cooling System High-capacity Storage Unit Huge Storage Unit Matter Filter EM Shotgun EM Shotgun EM Shotgun EM Shotgun XL Autogun Array Proton Bomb Trap Proton Bomb Trap Proton Bomb Trap Peak State ------------ > --- POWER ------------ Light Nuclear Core > --- PROPULSION ------- Wheel Wheel > --- UTILITY ---------- Improved Heat Sink Large Storage Unit > --- WEAPON ----------- Small Laser Particle Gun > --- INVENTORY -------- Light Nuclear Core Wheel Wheel Compact Wheel Medium Storage Unit High-capacity Storage Unit Huge Storage Unit Assault Rifle [Rating: 13] Favorites ----------- Power Light Nuclear Core Engine Light Ion Engine Power Core Light Nuclear Core Propulsion Wheel Wheel Wheel Utility Large Storage Unit Device Improved Heat Sink Storage Large Storage Unit Protection Light Armor Plating Weapon Small Laser Energy Gun Small Laser Ballistic Gun Assault Rifle Build | -11 -10 -10 -10 -9 ------- Run | Yrd Mat Min Exi Min Slots Evolved . | . . . . . Power . | . . . . . Propulsion . | . . . . . Utility . | . . . . . Weapon . | . . . . . Parts Attached 34 | 5 18 5 3 3 Power 5 | 1 2 1 . 1 Engine 3 | 1 . 1 . 1 Core 2 | . 2 . . . Reactor . | . . . . . Propulsion 16 | 2 9 3 . 2 Treads . | . . . . . Leg . | . . . . . Wheel 16 | 2 9 3 . 2 Hover . | . . . . . Flight . | . . . . . Utility 4 | . 3 . 1 . Device 1 | . 1 . . . Storage 2 | . 2 . . . Processor . | . . . . . Hackware . | . . . . . Protection 1 | . . . 1 . Artifact . | . . . . . Weapon 9 | 2 4 1 2 . Energy Gun 4 | . 4 . . . Energy Cannon . | . . . . . Ballistic Gun 5 | 2 . 1 2 . Ballistic Cannon . | . . . . . Launcher . | . . . . . Special Weapon . | . . . . . Impact Weapon . | . . . . . Slashing Weapon . | . . . . . Piercing Weapon . | . . . . . Special Melee Weapon . | . . . . . Unidentified Prototypes . | . . . . . Parts Lost 10 | . 2 7 . 1 Power 3 | . 1 2 . . Propulsion 4 | . 1 2 . 1 Utility 1 | . . 1 . . Weapon 2 | . . 2 . . Highest Loss Streak 7 | . 1 7 . 1 To Critical Strikes . | . . . . . Average Backups 8 | 1 7 13 10 9 Power . | . 1 . . . Propulsion 1 | . 1 1 1 . Utility 2 | . 2 3 2 2 Weapon 4 | . 2 7 6 5 Tool/Special . | . . . . . Unused Backups 14 | . 5 . . 9 Power 2 | . 2 . . . Propulsion . | . . . . . Utility 4 | . 1 . . 3 Weapon 8 | . 2 . . 6 Tool/Special . | . . . . . Average Slot Usage (%) 90 | . 92 96 57 92 Engine 2 | . 2 . . 10 Core 8 | . 9 12 . . Wheel 27 | . 27 27 28 25 Device 9 | . 12 12 . . Storage 12 | . 11 14 14 14 Protection 2 | . . . 8 14 Energy Gun 19 | . 23 26 . . Ballistic Gun 6 | . 4 1 6 27 Peak Build Rating 13 | 5 13 12 9 12 Average Rating 10 | 4 10 11 6 11 On Entrance 6 | . 5 12 5 9 Avg Prop Armor Cover (%) . | . . . . . Naked Turns . | . . . . . Heaviest Build 31 | 7 31 29 24 30 Greatest Support 26 | 20 20 26 20 20 Greatest Overweight (x) 2 | . 1 2 1 2 Average Overweight (x) . | . . 1 . 1 Largest Inventory Capacity 15 | 5 15 15 15 15 Average Capacity 13 | 5 12 15 15 15 Most Carried 15 | 2 15 15 14 15 Average Carried 9 | 1 7 13 11 13 Final Capacity 15 | 5 15 15 15 15 Final Carried 15 | 2 14 11 14 15 Class Distribution -------------------- 57% | Scavenger-Mutant 42% | Mutant Dominant Class ---------------- Scavenger-Mutant | -10/Materials Scavenger-Mutant | -10/Mines Mutant | -10/Exiles Mutant | -9/Mines Resources | -11 -10 -10 -10 -9 ----------- Run | Yrd Mat Min Exi Min Matter Collected 894 | 146 454 88 . 206 Remotely . | . . . . . Salvage Created 1336 | 89 875 249 . 123 Parts 97 | 6 63 15 . 13 Haulers Intercepted 2 | . 2 . . . Recyclers Shooed 2 | . 1 1 . . Parts Field Recycled . | . . . . . Retrieved Matter . | . . . . . Parts Self-Destructed . | . . . . . Prevented . | . . . . . Parts Restored . | . . . . . Kills | -11 -10 -10 -10 -9 ------- Run | Yrd Mat Min Exi Min Combat Hostiles Destroyed 25 | . 14 4 . 7 Guns 25 | . 14 4 . 7 Classes Destroyed 8 | 2 5 1 . . Worker 10 | . 7 3 . . Builder 2 | . 2 . . . Tunneler 4 | 1 1 1 . 1 Hauler 2 | . 2 . . . Recycler 2 | 1 1 . . . Swarmer 10 | . 3 . . 7 Grunt 13 | . 11 2 . . Assembled 2 | . . 2 . . Thug 1 | . . 1 . . Best Kill Streak 4 | 2 4 3 . 3 Combat Bots Only 3 | . 3 2 . 3 Max Kills in Single Turn 2 | 1 1 1 . 2 Gunslinging 1 | . . . . 1 Exploded . | . . . . . Melee . | . . . . . Uniques/NPCs Destroyed . | . . . . . Combat | -11 -10 -10 -10 -9 -------- Run | Yrd Mat Min Exi Min Hostile Shots Fired 139 | . 58 35 . 46 Missed 36 | . 17 7 . 12 Hits 103 | . 41 28 . 34 Melee 5 | . . 5 . . Projectile 98 | . 41 23 . 34 AOE 3 | . . 3 . . Critical Strikes 2 | . 1 . . 1 Damage Taken 1342 | . 489 577 . 276 Core 255 | . 158 46 . 51 Absorbed by Shields . | . . . . . Regen/Repaired (Parts) 50 | . 50 . . . Core Remaining (%) 100 | 100 . . . . Volleys Fired 126 | 5 77 25 . 19 Largest 2 | 2 2 2 . 2 Hottest 105 | 40 105 90 . 40 Shots Fired 253 | 10 154 51 . 38 Gun 253 | 10 154 51 . 38 Cannon . | . . . . . Launcher . | . . . . . Special . | . . . . . Kinetic 97 | 10 42 7 . 38 Thermal 156 | . 112 44 . . Explosive . | . . . . . Electromagnetic . | . . . . . Robot Hit Streak 8 | 4 8 7 . 3 Robot Miss Streak 6 | 2 6 2 . 5 Penetration Max . | . . . . . Secondary Targets 2 | . . . . 2 Max Gunslinging Chain 1 | . . . . 1 Shots Hit Robots 134 | 6 80 32 . 16 Core Hits 69 | 3 41 17 . 8 Critical Kills 1 | . . . . 1 Critical Parts Destroyed . | . . . . . Critical Strikes 1 | . . . . 1 Destroy 1 | . . . . 1 Melee Attacks . | . . . . . Impact . | . . . . . Slashing . | . . . . . Piercing . | . . . . . Sneak Attacks . | . . . . . Combat Hostiles . | . . . . . Follow-up Attacks . | . . . . . Damage Inflicted 1917 | 74 1158 476 . 209 Guns 1917 | 74 1158 476 . 209 Cannons . | . . . . . Explosions . | . . . . . Melee . | . . . . . Ramming . | . . . . . Kinetic 733 | 74 382 68 . 209 Thermal 1184 | . 776 408 . . Explosive . | . . . . . Electromagnetic . | . . . . . Impact . | . . . . . Slashing . | . . . . . Piercing . | . . . . . Highest Corruption 2 | . 2 2 2 2 Average Corruption 2 | . 2 2 2 2 Corruption Purged . | . . . . . Corruption Blocked . | . . . . . Effects 29 | . 11 9 2 7 Message Errors 9 | . 6 1 1 1 Matter Fused 5 | . 1 3 . 1 Heat Flow Errors 3 | . . 1 . 2 Energy Discharges 3 | . . 2 1 . Data Loss (minor) 5 | . 1 1 . 3 Data Loss (major) 1 | . 1 . . . Misfires 1 | . . 1 . . Alerts 2 | . 2 . . . Overload Shots . | . . . . . Overflow Damage . | . . . . . Projectiles . | . . . . . Explosions . | . . . . . Melee . | . . . . . Knockbacks . | . . . . . Impact . | . . . . . Kinetic . | . . . . . Secondary . | . . . . . Self-Inflicted Damage . | . . . . . Shots . | . . . . . Rammed . | . . . . . Targets Rammed . | . . . . . Kicked . | . . . . . Crushed . | . . . . . Highest Temperature 236 | . 147 236 . 181 Average Temperature 32 | . 25 45 . 84 Received Heat Transfer 361 | . 261 100 . . Siege Activations . | . . . . . Martial Activations . | . . . . . Shielding Activations . | . . . . . Robots Disrupted . | . . . . . Combat Hostiles . | . . . . . Robots Corrupted . | . . . . . Combat Hostiles . | . . . . . Parts Fried . | . . . . . Impact Corruptions . | . . . . . Robots Melted . | . . . . . Combat Hostiles . | . . . . . Parts Melted 3 | . 2 1 . . Heat Transferred 2805 | . 1762 1043 . . Parts Sabotaged . | . . . . . Parts Stolen . | . . . . . Parts Stripped . | . . . . . Power Chain Reactions . | . . . . . Alert | -11 -10 -10 -10 -9 ------- Run | Yrd Mat Min Exi Min Maximum Alert Level . | . . . . . Low Security (%) 100 | 100 100 100 . 100 Level 1 . | . . . . . Level 2 . | . . . . . Level 3 . | . . . . . Level 4 . | . . . . . Level 5 . | . . . . . High Security . | . . . . . Max Security . | . . . . . Peak Influence 157 | 10 157 37 . 80 Initial 6 | . 6 4 . . Average 52 | 1 75 4 . 38 Influence Increases 787 | 10 490 92 . 195 Destroy 0b10 Robot/C 480 | . 280 60 . 140 Destroy 0b10 Robot/NC 100 | 10 65 20 . 5 Destroy Leader 94 | . 64 10 . 20 Allied During Kill 2 | . . 2 . . Successful Hack 17 | . 17 . . . Disable Machine 60 | . 30 . . 30 Destroy Structure 4 | . 4 . . . Lose Combat Pursuer 30 | . 30 . . . Influence Decreases 727 | . 489 103 . 135 Entered New Map 11 | . 4 7 . . Time Decay 666 | . 465 76 . 125 Lost Part 30 | . 20 . . 10 Lost Ally 20 | . . 20 . . Squads Dispatched 3 | . 2 . . 1 Investigation 1 | . . . . 1 Extermination . | . . . . . Reinforcement 2 | . 2 . . . Assault . | . . . . . Garrison . | . . . . . Intercept . | . . . . . Searches Triggered . | . . . . . Construction Impeded . | . . . . . Haulers Reinforced . | . . . . . Active Scanning Responses . | . . . . . Cargo Convoy Interrupts . | . . . . . Stealth | -11 -10 -10 -10 -9 --------- Run | Yrd Mat Min Exi Min Distress Signals 1 | . 1 . . . Communications Jammed . | . . . . . Distress Signals . | . . . . . Times Spotted 57 | . 25 23 . 9 Peak Tracking Total 14 | . 4 14 . 4 Tactical Retreats 3 | . 2 1 . . Traps | -11 -10 -10 -10 -9 ------- Run | Yrd Mat Min Exi Min Traps Triggered 1 | . 1 . . . Indirectly . | . . . . . Trap Hack Attempts . | . . . . . Triggered . | . . . . . Disarmed . | . . . . . Reprogrammed . | . . . . . Reused . | . . . . . Traps Extracted . | . . . . . Installed . | . . . . . Triggered . | . . . . . Most Traps Carried 3 | . . . . 3 Machines | -11 -10 -10 -10 -9 ---------- Run | Yrd Mat Min Exi Min Machines Disabled 4 | . 2 . . 2 Max in Single Turn 1 | . 1 . . 1 Machines Repaired . | . . . . . Machines Dismantled . | . . . . . Machines Sabotaged . | . . . . . Overloaded Fab Kills . | . . . . . Hacking | -11 -10 -10 -10 -9 --------- Run | Yrd Mat Min Exi Min Machines Accessed 8 | . 6 . 1 1 Terminals 5 | . 5 . . . Fabricators . | . . . . . Repair Stations 1 | . 1 . . . Recycling Units . | . . . . . Scanalyzers . | . . . . . Garrison Access . | . . . . . Total Hacks 19 | . 17 . 1 1 Successful 12 | . 10 . 1 1 Failed 7 | . 7 . . . Catastrophic 2 | . 2 . . . Database Lockouts . | . . . . . Manual 13 | . 12 . 1 . Terminals 13 | . 13 . . . Fabricators . | . . . . . Repair Stations 4 | . 4 . . . Recycling Units . | . . . . . Scanalyzers . | . . . . . Garrison Access . | . . . . . Terminal Hacks 6 | . 4 . 1 1 Part Schematic 1 | . 1 . . . Robot Analysis 1 | . 1 . . . Open Door 1 | . . . . 1 Locate Traps 1 | . 1 . . . Hauler Manifests 1 | . 1 . . . Proto ID Catalog 1 | . . . 1 . Fabricator Hacks . | . . . . . Repair Station Hacks 4 | . 4 . . . Scan Component 2 | . 2 . . . Repair 2 | . 2 . . . Recycling Unit Hacks . | . . . . . Scanalyzer . | . . . . . Garrison Access Hacks . | . . . . . Unauthorized Hacks 2 | . 2 . . . Terminals 2 | . 2 . . . Botnet 2 | . 2 . . . Fabricators . | . . . . . Repair Stations . | . . . . . Recycling Units . | . . . . . Scanalyzers . | . . . . . Garrison Access . | . . . . . Data Cores Recovered . | . . . . . Used . | . . . . . Hacking Detections 6 | . 6 . . . Full Trace Events . | . . . . . Feedback Events . | . . . . . Feedback Blocked . | . . . . . Robot Schematics Acquired . | . . . . . Robots Built . | . . . . . Authchips . | . . . . . Time . | . . . . . Total Robot Build Rating . | . . . . . Part Schematics Acquired 1 | . 1 . . . Parts Built . | . . . . . Authchips . | . . . . . Time . | . . . . . Total Part Build Rating . | . . . . . Part Studies Acquired . | . . . . . Parts Repaired 2 | . 2 . . . Time 64 | . 64 . . . Parts Recycled . | . . . . . Recycled Matter . | . . . . . Retrieved Matter . | . . . . . Retrieved Components . | . . . . . Parts Scanalyzed . | . . . . . Part Schematics Acquired . | . . . . . Parts Damaged . | . . . . . Bothacking | -11 -10 -10 -10 -9 ------------ Run | Yrd Mat Min Exi Min Used RIF Installer . | . . . . . Robots Hacked . | . . . . . Non-combat . | . . . . . Combat . | . . . . . Robot Hacks Applied . | . . . . . Relay Couplers Released . | . . . . . Fabnet Peak Effective % . | . . . . . Robots Rewired . | . . . . . Allies Hacked . | . . . . . Hacks Repelled . | . . . . . Allies | -11 -10 -10 -10 -9 -------- Run | Yrd Mat Min Exi Min Total Allies 3 | . . 3 . . Largest Group 2 | . . 2 . . Highest-Rated Group 40 | . . 40 . . Highest-Rated Ally 31 | . . 31 . . Total Orders . | . . . . . Ally Attacks 15 | . . 15 . . Total Damage 105 | . . 105 . . Kills 3 | . . 3 . . Allies Corrupted . | . . . . . Allies Melted . | . . . . . Intel | -11 -10 -10 -10 -9 ------- Run | Yrd Mat Min Exi Min Active Infowar (turns) . | . . . . . Robot Analysis Total 1 | . 1 . . . Derelict Logs Recovered 1 | . . 1 . . Drone Launches . | . . . . . Drone Recoveries . | . . . . . Exploration | -11 -10 -10 -10 -9 ------------- Run | Yrd Mat Min Exi Min Turns Passed 2463 | 55 1408 517 207 276 Spaces Moved 1968 | 41 1078 419 220 210 Core 6 | 6 . . . . Treads . | . . . . . Legs . | . . . . . Wheels 1962 | 35 1078 419 220 210 Hover . | . . . . . Flight . | . . . . . Fastest Speed 50 | 50 80 90 80 95 Average Speed 93 | 75 90 100 91 96 Slowest Speed 110 | 80 95 110 95 110 Overloaded Moves . | . . . . . Propulsion Burnouts . | . . . . . Robots Hopped . | . . . . . Potential Cave-ins . | . . . . . Cave-ins Triggered . | . . . . . Exploration Rate (%) 61 | 3 99 85 60 58 Regions Visited 4 Branch Regions 3 Pre-discovered Areas . | . . . . . Known Exits Taken 1 | . . . 1 . Unknown Exits Taken 3 | 1 1 1 . . Scrap Searched 2 | . . 1 . 1 Spaces Dug . | . . . . . Terrain Destroyed . | . . . . . Melee . | . . . . . Projectile . | . . . . . AOE . | . . . . . Terrain Rammed . | . . . . . Walls Destroyed . | . . . . . Machines Disabled . | . . . . . Actions | -11 -10 -10 -10 -9 --------- Run | Yrd Mat Min Exi Min Total 2343 | 52 1356 464 226 245 Wait 160 | . 146 10 . 4 Move 1964 | 40 1077 418 219 210 Hop . | . . . . . Pick Up 31 | 2 20 3 1 5 Fast Attach 10 | 5 3 . . 2 Attach 10 | . 2 4 2 2 Detach 2 | . . . 2 . Swap 19 | . 15 2 1 1 Drop 21 | . 16 2 1 2 Fire 126 | 5 77 25 . 19 Melee . | . . . . . Ram . | . . . . . Kick . | . . . . . Crush . | . . . . . Escape Stasis . | . . . . . Rewire . | . . . . . Trap . | . . . . . Miscellaneous . | . . . . . Route ------- -11/Scrapyard -10/Materials (discovered 6 exits: [*Mat x3] / [*Min x2] / [*Sub]) -10/Mines (discovered 3 exits: [*Mat x2] / *Exi) -10/Exiles (discovered 2 exits: *Min x2) -9/Mines History --------- Turn | Location | Event 2 | -11/Scrapyard | Met Revision 17 11 | -11/Scrapyard | Discovered new exit (range 16) 56 | -11/Scrapyard | Entered Materials 316 | -10/Materials | Discovered new exit (range 5) 377 | -10/Materials | Core integrity fell below 50% 580 | -10/Materials | Build established: Scavenger-Mutant 595 | -10/Materials | Discovered new exit (range 4) 658 | -10/Materials | Discovered new exit (range 11) 789 | -10/Materials | Discovered new exit (range 16) 990 | -10/Materials | Discovered new exit (range 16) 1073 | -10/Materials | Discovered new exit (range 16) 1226 | -10/Materials | Repaired Sml. Laser 1264 | -10/Materials | Repaired Lgt. Nuclear Core 1464 | -10/Materials | Entered Mines 1471 | -10/Mines | Received a Mining Laser from a helpful Derelict 1541 | -10/Mines | Met a Derelict bent on vengeance 1581 | -10/Mines | Discovered new exit (range 9) 1759 | -10/Mines | Discovered new exit (range 6) 1887 | -10/Mines | Assembled infested the area 1955 | -10/Mines | Core integrity fell below 20% 1977 | -10/Mines | Deemed a non-threat by the Exiles lab entrance 1977 | -10/Mines | Discovered new exit (range 5) 1981 | -10/Mines | Entered Exiles 1982 | -10/Exiles | Identified exit to Mines 1987 | -10/Exiles | Lost 7 parts (2p2n1u2w) 2009 | -10/Exiles | Met 8R-AWN 2025 | -10/Exiles | Met EX-HEX 2052 | -10/Exiles | Met EX-BIN 2065 | -10/Exiles | Aligned with FarCom system 2066 | -10/Exiles | Given EX-Vault access code 2088 | -10/Exiles | Opened EX-Vault 2098 | -10/Exiles | Found XL Autogun Array 2116 | -10/Exiles | Warned to stay clear of 0b10 Research branches 2144 | -10/Exiles | Met EX-DEC 2188 | -10/Exiles | Left Exiles lab with XL Autogun Array 2188 | -10/Exiles | Entered Mines 2210 | -9/Mines | Build established: Mutant 2286 | -9/Mines | Found a hidden stash of uninstalled traps 2377 | -9/Mines | Met a Derelict shopkeep closing up shop 2464 | -9/Mines | Destroyed by S-10 Pest with Light Assault Rifle Last Messages --------------- 02382_ System corrupted: Component data lost. 02399_ K-01 Serf destroyed. 02403_ S-10 Pest destroyed. 02403_ Switching to secondary target: S-10 Pest. 02403_ S-10 Pest destroyed. 02428_ R-06 Scavenger collects Wheel. 02433_ Acquired 26 matter. 02434_ Searching scrap... 02434_ Found Cooling System. 02434_ Found 59 Matter. 02442_ System corrupted: Matter fused (-7). 02442_ Acquired 7 matter. 02445_ Dropped Wheel. 02445_ Acquired Cooling System. 02449_ Acquired 16 matter. 02451_ Acquired 6 matter. 02453_ S-10 Pest destroyed. 02454_ Acquired 6 matter. 02459_ S-10 Pest destroyed. 02460_ Acquired 6 matter. Map ----- +----------------------------------------------------+ | ?????????????????????????????????????????? | | ?????????????????????????????????????????? | | ?????????????????????????????????????????? | | ?????????????????????????????????????????? | | ?????????????????????????????????????????? | | ?????????????????????????????????????????? | | ?????????????????????????????????????????? | | ?????????????????????????????????????????? | | ?????????????????????????????????????????? | | ?????????????????????????????????????????? | | ?????????????????????????????????????????? | | ?????????????????????????????????????????? | | ?????????????????????????????????????????? | | ?????????????????????????????????????????? | | ?????????????????????????????????????????? | | ?????????????????????????????????????????? | | ?????????????????????????????????????????? | | ????????????????????????????????????????## | | ???????????????????????????????????????##" | | ???????????????????????????????????????#"! | | ???????????#???????????????????????????#"! | | ???????????# ?????????????????####?????## | | ???????????# ????????????###### ######### | | ???????????# ??????????## ## ## | | ???????????# ########### | | ???????????# [@ = % | | ???????????# [%=s %k% u r ### | | ???????????######*#### ## ##?## | | ????????????????# #?# % ###### ##??? | | ????????????????# #?# #????## #??? | | ????????????????#s### #?????# #??? | | ????????????????# ## ##???## #??? | | ????????????????# ## ##?## ##??? | | ???????????????? ### ### ###???? | | ????????????????##??## ##?????? | | ?????????????????????## ###??????? | | ??????????????????????##### ##????????? | | ?????????????????????##???# ##????????? | | ???????????????????### ## #????????? | | ???????????????????# #????????? | | ??????????????????# #???????? | | ??????????????????# #???????? | | ??????????????????## #???????? | | ???????????????????## ## #???????? | | ????????????????????## #?## #??????? | | ?????????????????????###???## ?????? | | ????????????????????????????# ????? | | ????????????????????????????## ??? | | ??????????????????????????????## ??? | | ????????????????????????????????# ??? | +----------------------------------------------------+ Best States ------------- Heat Dissipation 39 Energy Generation 14 Energy Capacity 160 Matter Stores 300 Matter Capacity 300 Sight Range 16 Terrain Scan Density 10 Armor Coverage 150 Evasion (%) 44 Item Schematics ----------------- Hcp. Storage Unit | -10/Materials | Hacked Robot Schematics ------------------ None Fabricated ------------ Nothing Repaired ---------- Sml. Laser | 67% | -10/Materials Lgt. Nuclear Core | 46% | -10/Materials Studied --------- None Alien Tech Used ----------------- None Achievements -------------- None Challenges ------------ None Game ------ Seed VoltaicSkeletonStripper Manual? 0 Play Time 00:18:10 Cumulative 628.8 hours Start 2026.08.31 @ 12:59:53 End 2026.08.31 @ 13:16:50 Sessions 1 Manual Loads 0 Difficulty Rogue Special Mode None Game No. 262 Rogue 262 Adventurer 0 Explorer 0 Win Type - Total 37 Types 16/4/6/2/1/2/2/2/1/1 Lore% 90 Gallery% 83 Achievement% 78 Wizard Run 0 Options --------- Layout 0 ASCII 0 Keyboard 0 Movement Arrows Keybinds 0 Fullscreen 2 Font 18/Terminus Map View 76x50 Zoom Use 0% Tactical HUD 1 Map Filters BRIGHTNESS(90)|SATURATION(90) Filters NONE Steam 1 RUN: 16a5e84a-4b9d-44a3-a88f-72d2d03f67ea